fUSD/lending_fUSD_20250206
["ID","MTS","AMOUNT","RATE_DAILY","PERIOD"]
[351988488,1738869059819,-500.0,0.00016849,2]
[351988489,1738869059828,-500.0,0.00016849,2]
[351988490,1738869059838,-500.0,0.00016849,2]
[351988491,1738869059849,-514.04,0.00016849,2]
[351988492,1738869059858,-633.97412871,0.00016849,2]
[351988493,1738869059867,-500.0,0.00016849,2]
[351988494,1738869059877,-500.0,0.00016849,2]
[351988495,1738869059886,-500.0,0.00016849,2]
[351988496,1738869059895,-757.6,0.00016849,2]
[351988497,1738869059904,-500.0,0.00016849,2]
[351988498,1738869059914,-1291.91,0.00016849,2]
[351988499,1738869059923,-500.0,0.00016849,2]
[351988500,1738869059933,-505.03,0.00016849,2]
[351988501,1738869059943,-682.29,0.00016849,2]
[351988502,1738869059952,-500.0,0.00016849,2]
[351988503,1738869059962,-500.0,0.00016849,2]
[351988504,1738869059971,-500.0,0.00016849,2]
[351988505,1738869059982,-500.86,0.00016849,2]
[351988506,1738869059993,-500.0,0.00016849,2]
[351988507,1738869060002,-500.0,0.00016849,2]
[351988508,1738869060012,-666.89,0.00016849,2]
[351988509,1738869060022,-500.0,0.00016849,2]
[351988510,1738869060031,-500.0,0.00016849,2]
[351988511,1738869060041,-500.0,0.00016849,2]
[351988512,1738869060051,-500.0,0.00016849,2]
[351988513,1738869060062,-500.0,0.00016849,2]
[351988514,1738869060072,-500.0,0.00016849,2]
[351988515,1738869060081,-500.0,0.00016849,2]
[351988516,1738869060092,-500.0,0.00016849,2]
[351988517,1738869060101,-500.0,0.00016849,2]
[351988518,1738869060111,-500.0,0.00016849,2]
[351988519,1738869060121,-500.0,0.00016849,2]
[351988520,1738869060132,-500.0,0.00016849,2]
[351988521,1738869060142,-500.0,0.00016849,2]
[351988522,1738869060152,-500.0,0.00016849,2]
[351988523,1738869060161,-658.41,0.00016849,2]
[351988524,1738869060171,-500.0,0.00016849,2]
[351988525,1738869060181,-500.0,0.00016849,2]
[351988526,1738869060190,-500.0,0.00016849,2]
[351988527,1738869060200,-500.0,0.00016849,2]
[351988528,1738869060210,-649.15,0.00016849,2]
[351988529,1738869060220,-500.0,0.00016849,2]
[351988530,1738869060229,-500.0,0.00016849,2]
[351988531,1738869060239,-500.0,0.00016849,2]
[351988532,1738869060248,-500.0,0.00016849,2]
[351988533,1738869060258,-682.77,0.00016849,2]
[351988534,1738869060267,-500.0,0.00016849,2]
[351988535,1738869060276,-527.89695621,0.00016849,2]
[351988536,1738869060286,-500.0,0.00016849,2]
[351988537,1738869060295,-809.52,0.00016849,2]
[351988538,1738869060305,-749.62,0.00016849,2]
[351988539,1738869060315,-500.0,0.00016849,2]
[351988540,1738869060324,-500.0,0.00016849,2]
[351988541,1738869060333,-500.0,0.00016849,2]
[351988542,1738869060344,-500.0,0.00016849,2]
[351988543,1738869060354,-500.0,0.00016849,2]
[351988544,1738869060363,-500.0,0.00016849,2]
[351988545,1738869060373,-500.0,0.00016849,2]
[351988546,1738869060384,-500.0,0.00016849,2]
[351988547,1738869060394,-500.0,0.00016849,2]
[351988548,1738869060404,-500.0,0.00016849,2]
[351988549,1738869060414,-500.0,0.00016849,2]
[351988550,1738869060423,-671.3,0.00016849,2]
[351988551,1738869060433,-500.0,0.00016849,2]
[351988552,1738869060442,-500.0,0.00016849,2]
[351988553,1738869060452,-500.0,0.00016849,2]
[351988554,1738869060462,-500.0,0.00016849,2]
[351988555,1738869060471,-500.0,0.00016849,2]
[351988556,1738869060480,-500.0,0.00016849,2]
[351988557,1738869060493,-500.0,0.00016849,2]
[351988558,1738869060503,-727.24,0.00016849,2]
[351988559,1738869060512,-500.0,0.00016849,2]
[351988560,1738869060521,-500.0,0.00016849,2]
[351988561,1738869060531,-595.86,0.00016849,2]
[351988562,1738869060540,-500.0,0.00016849,2]
[351988563,1738869060550,-500.0,0.00016849,2]
[351988564,1738869060559,-500.0,0.00016849,2]
[351988565,1738869060568,-736.27,0.00016849,2]
[351988566,1738869060578,-782.84,0.00016849,2]
[351988567,1738869060589,-546.92,0.00016849,2]
[351988568,1738869060602,-500.0,0.00016849,2]
[351988569,1738869060611,-500.0,0.00016849,2]
[351988570,1738869060620,-561.78,0.00016849,2]
[351988571,1738869060630,-1313.34,0.00016849,2]
[351988572,1738869060639,-677.32,0.00016849,2]
[351988573,1738869060648,-500.0,0.00016849,2]
[351988574,1738869060658,-500.0,0.00016849,2]
[351988575,1738869060668,-951.97,0.00016849,2]
[351988576,1738869060678,-500.0,0.00016849,2]
[351988577,1738869060687,-1245.67,0.00016849,2]
[351988578,1738869060696,-500.0,0.00016849,2]
[351988579,1738869060706,-500.0,0.00016849,2]
[351988580,1738869060716,-729.72,0.00016849,2]
[351988581,1738869060726,-1576.36,0.00016849,2]
[351988582,1738869060735,-947.89,0.00016849,2]
[351988583,1738869060745,-1217.23,0.00016849,2]
[351988584,1738869060755,-500.0,0.00016849,2]
[351988585,1738869060765,-500.0,0.00016849,2]
[351988586,1738869060775,-1009.01,0.00016849,2]
[351988587,1738869060786,-502.81,0.00016849,2]
[351988588,1738869060795,-500.0,0.00016849,2]
[351988589,1738869060805,-1132.51,0.00016849,2]
[351988590,1738869060815,-592.17,0.00016849,2]
[351988591,1738869060824,-698.36,0.00016849,2]
[351988592,1738869060834,-714.09,0.00016849,2]
[351988593,1738869060844,-788.72,0.00016849,2]
[351988594,1738869060854,-500.0,0.00016849,2]
[351988595,1738869060863,-1183.22,0.00016849,2]
[351988596,1738869060872,-1152.38,0.00016849,2]
[351988597,1738869060882,-797.6,0.00016849,2]
[351988598,1738869060891,-588.41,0.00016849,2]
[351988599,1738869060901,-555.42,0.00016849,2]
[351988600,1738869060910,-2551.39,0.00016849,2]
[351988601,1738869060920,-500.0,0.00016849,2]
[351988602,1738869060929,-571.31,0.00016849,2]
[351988603,1738869060939,-759.91,0.00016849,2]
[351988604,1738869060949,-3041.0,0.00016849,2]
[351988605,1738869060958,-500.0,0.00016849,2]
[351988606,1738869060968,-500.0,0.00016849,2]
[351988607,1738869060977,-799.86,0.00016849,2]
[351988608,1738869060986,-609.0,0.00016849,2]
[351988609,1738869060996,-2070.64,0.00016849,2]
[351988610,1738869061005,-288.06766098,0.00016849,2]
[351988611,1738869061015,-500.0,0.00016849,2]
[351988612,1738869061024,-500.0,0.00016849,2]
[351988613,1738869061034,-522.23,0.00016849,2]
[351988614,1738869061043,-928.38,0.00016849,2]
[351988615,1738869061053,-766.76,0.00016849,2]
[351988616,1738869061063,-500.0,0.00016849,2]
[351988617,1738869061073,-716.2,0.00016849,2]
[351988618,1738869061083,-883.93,0.00016849,2]
[351988619,1738869061094,-552.7,0.00016849,2]
[351988620,1738869061103,-1508.2,0.00016849,2]
[351988621,1738869061114,-516.18,0.00016849,2]
[351988622,1738869061124,-500.0,0.00016849,2]
[351988623,1738869061134,-1447.02,0.00016849,2]
[351988624,1738869061144,-320.39890859,0.00016849,2]
[351988625,1738869061155,-500.0,0.00016849,2]
[351988626,1738869061164,-706.53,0.00016849,2]
[351988627,1738869061175,-500.0,0.00016849,2]
[351988628,1738869061185,-978.65,0.00016849,2]
[351988629,1738869061194,-1153.65,0.00016849,2]
[351988630,1738869061204,-500.0,0.00016849,2]
[351988631,1738869061214,-1914.73,0.00016849,2]
[351988632,1738869061223,-947.99,0.00016849,2]
[351988633,1738869061233,-579.21,0.00016849,2]
[351988634,1738869061243,-628.67,0.00016849,2]
[351988635,1738869061252,-500.0,0.00016849,2]
[351988636,1738869061262,-683.61,0.00016849,2]
[351988637,1738869061272,-1019.47,0.00016849,2]
[351988638,1738869061281,-1070.13,0.00016849,2]
[351988639,1738869061291,-500.0,0.00016849,2]
[351988640,1738869061301,-1472.07,0.00016849,2]
[351988641,1738869061311,-1119.85,0.00016849,2]
[351988642,1738869061320,-829.24,0.00016849,2]
[351988643,1738869061331,-1237.8,0.00016849,2]
[351988644,1738869061341,-500.0,0.00016849,2]
[351988645,1738869061351,-768.55,0.00016849,2]
[351988646,1738869061362,-500.0,0.00016849,2]
[351988647,1738869061372,-823.29,0.00016849,2]
[351988648,1738869061382,-3432.47,0.00016849,2]
[351988649,1738869061393,-500.0,0.00016849,2]
[351988650,1738869061403,-500.0,0.00016849,2]
[351988651,1738869061413,-1124.75,0.00016849,2]
[351988652,1738869061423,-1001.46,0.00016849,2]
[351988653,1738869061433,-500.0,0.00016849,2]
[351988654,1738869061442,-500.0,0.00016849,2]
[351988655,1738869061453,-592.42,0.00016849,2]
[351988656,1738869061462,-1057.54,0.00016849,2]
[351988657,1738869061472,-500.0,0.00016849,2]
[351988658,1738869061482,-781.47,0.00016849,2]
[351988659,1738869061492,-500.0,0.00016849,2]
[351988660,1738869061504,-500.0,0.00016849,2]
[351988661,1738869061514,-1590.71,0.00016849,2]
[351988662,1738869061525,-571.38,0.00016849,2]
[351988663,1738869061535,-500.0,0.00016849,2]
[351988664,1738869061545,-547.46,0.00016849,2]
[351988665,1738869061555,-611.88,0.00016849,2]
[351988666,1738869061566,-500.0,0.00016849,2]
[351988667,1738869061577,-500.0,0.00016849,2]
[351988668,1738869061587,-500.0,0.00016849,2]
[351988669,1738869061598,-917.36,0.00016849,2]
[351988670,1738869061607,-2012.37,0.00016849,2]
[351988671,1738869061617,-581.15,0.00016849,2]
[351988672,1738869061627,-500.0,0.00016849,2]
[351988673,1738869061637,-1680.18,0.00016849,2]
[351988674,1738869061646,-1207.36,0.00016849,2]
[351988675,1738869061656,-581.67,0.00016849,2]
[351988676,1738869061667,-1132.12,0.00016849,2]
[351988677,1738869061677,-500.0,0.00016849,2]
[351988678,1738869061688,-500.0,0.00016849,2]
[351988679,1738869061698,-1498.04,0.00016849,2]
[351988680,1738869061707,-500.0,0.00016849,2]
[351988681,1738869061717,-500.0,0.00016849,2]
[351988682,1738869061727,-500.0,0.00016849,2]
[351988683,1738869061738,-1513.16,0.00016849,2]
[351988684,1738869061748,-925.3,0.00016849,2]
[351988685,1738869061758,-2321.43,0.00016849,2]
[351988686,1738869061768,-530.46,0.00016849,2]
[351988687,1738869061778,-751.5,0.00016849,2]
[351988688,1738869061788,-819.37,0.00016849,2]
[351988689,1738869061799,-1131.41,0.00016849,2]
[351988690,1738869061809,-516.32,0.00016849,2]
[351988691,1738869061818,-500.0,0.00016849,2]
[351988692,1738869061827,-500.0,0.00016849,2]
[351988693,1738869061838,-500.0,0.00016849,2]
[351988694,1738869061850,-340.03,0.00016849,2]
[351988695,1738869061861,-887.03,0.00016849,2]
[351988696,1738869061871,-500.0,0.00016849,2]
[351988697,1738869061880,-1716.92,0.00016849,2]
[351988698,1738869061890,-750.35,0.00016849,2]
[351988699,1738869061899,-500.0,0.00016849,2]
[351988700,1738869061909,-500.0,0.00016849,2]
[351988701,1738869061919,-985.16,0.00016849,2]
[351988702,1738869061929,-1146.94,0.00016849,2]
[351988703,1738869061939,-471.00330999,0.00016849,2]
[351988704,1738869061950,-500.0,0.00016849,2]
[351988705,1738869061959,-500.0,0.00016849,2]
[351988706,1738869061969,-1123.01,0.00016849,2]
[351988707,1738869061979,-493.46797267,0.00016849,2]
[351988708,1738869061989,-1926.78,0.00016849,2]
[351988709,1738869061998,-500.0,0.00016849,2]
[351988710,1738869062007,-849.89,0.00016849,2]
[351988711,1738869062017,-774.75,0.00016849,2]
[351988712,1738869062027,-910.06,0.00016849,2]
[351988713,1738869062193,-750.33,0.00016849,2]
[351988714,1738869062203,-608.94,0.00016849,2]
[351988715,1738869062214,-1462.54,0.00016849,2]
[351988716,1738869062223,-543.86,0.00016849,2]
[351988717,1738869062233,-561.62,0.00016849,2]
[351988718,1738869062242,-527.28,0.00016849,2]
[351988719,1738869062252,-500.0,0.00016849,2]
[351988720,1738869062262,-500.0,0.00016849,2]
[351988721,1738869062272,-726.86,0.00016849,2]
[351988722,1738869062282,-500.0,0.00016849,2]
[351988723,1738869062291,-871.24,0.00016849,2]
[351988724,1738869062301,-839.79,0.00016849,2]
[351988725,1738869062312,-639.6,0.00016849,2]
[351988726,1738869062322,-679.77,0.00016849,2]
[351988727,1738869062332,-500.0,0.00016849,2]
[351988728,1738869062343,-774.5,0.00016849,2]
[351988729,1738869062354,-500.0,0.00016849,2]
[351988730,1738869062363,-500.0,0.00016849,2]
[351988731,1738869062373,-377.71,0.00016849,2]
[351988732,1738869062383,-395.70006908,0.00016883,2]
[351988733,1738869062394,-984.89,0.00016888,2]
[351988734,1738869062404,-984.89,0.00016888,2]
[351988735,1738869062414,-984.89,0.00016888,2]
[351988736,1738869062424,-518.43,0.00016888,2]
[351988737,1738869062434,-984.89,0.00016888,2]
[351988738,1738869062444,-354.55585274,0.00016973,2]
[351988739,1738869062455,-500.0,0.00016973,2]
[351988740,1738869062465,-500.0,0.00016985,2]
[351988741,1738869062474,-170.418657,0.00016986,2]
[351988742,1738869062484,-500.0,0.00016986,2]
[351988743,1738869062499,-200.145142,0.00016986,2]
[351988744,1738869062508,-500.0,0.00016986,2]
[351988745,1738869062518,-500.0,0.00016986,2]
[351988746,1738869062527,-658.15,0.00016986,2]
[351988747,1738869062538,-500.0,0.00016986,2]
[351988748,1738869062547,-500.0,0.00016986,2]
[351988749,1738869062557,-803.61,0.00016986,2]
[351988750,1738869062567,-500.0,0.00016986,2]
[351988751,1738869062577,-544.03,0.00016986,2]
[351988752,1738869062589,-500.0,0.00016986,2]
[351988753,1738869062604,-500.0,0.00016986,2]
[351988754,1738869062613,-500.0,0.00016986,2]
[351988755,1738869062623,-546.29,0.00016986,2]
[351988756,1738869062633,-500.0,0.00016986,2]
[351988757,1738869062643,-501.06,0.00016986,2]
[351988758,1738869062652,-500.0,0.00016986,2]
[351988759,1738869062662,-500.0,0.00016986,2]
[351988760,1738869062672,-705.77,0.00016986,2]
[351988761,1738869062682,-500.0,0.00016986,2]
[351988762,1738869062691,-500.0,0.00016986,2]
[351988763,1738869062701,-500.0,0.00016986,2]
[351988764,1738869062710,-500.0,0.00016986,2]
[351988765,1738869062720,-500.0,0.00016986,2]
[351988766,1738869062731,-572.78,0.00016986,2]
[351988767,1738869062741,-500.0,0.00016986,2]
[351988768,1738869062751,-500.0,0.00016986,2]
[351988769,1738869062770,-500.0,0.00016986,2]
[351988770,1738869062779,-500.0,0.00016986,2]
[351988771,1738869062789,-500.0,0.00016986,2]
[351988772,1738869062799,-177.83843742,0.00016986,2]
[351988773,1738869062809,-500.0,0.00016986,2]
[351988774,1738869062819,-625.43,0.00016986,2]
[351988775,1738869062830,-500.0,0.00016986,2]
[351988776,1738869062839,-403.09859588,0.00016986,2]
[351988777,1738869062853,-500.0,0.00016986,2]
[351988778,1738869062863,-500.0,0.00016986,2]
[351988779,1738869062874,-595.98,0.00016986,2]
[351988780,1738869062884,-500.0,0.00016986,2]
[351988781,1738869062893,-500.0,0.00016986,2]
[351988782,1738869062903,-500.0,0.00016986,2]
[351988783,1738869062914,-500.0,0.00016986,2]
[351988784,1738869062924,-514.04,0.00016986,2]
[351988785,1738869062935,-500.0,0.00016986,2]
[351988786,1738869062945,-500.0,0.00016986,2]
[351988787,1738869062954,-500.0,0.00016986,2]
[351988788,1738869062964,-757.6,0.00016986,2]
[351988789,1738869062974,-500.0,0.00016986,2]
[351988790,1738869062985,-1291.91,0.00016986,2]
[351988791,1738869062995,-220.83334328,0.00016986,2]
[351988792,1738869063005,-505.03,0.00016986,2]
[351988793,1738869063015,-682.29,0.00016986,2]
[351988794,1738869063026,-500.0,0.00016986,2]
[351988795,1738869063037,-500.0,0.00016986,2]
[351988796,1738869063047,-500.0,0.00016986,2]
[351988797,1738869063058,-500.86,0.00016986,2]
[351988798,1738869063068,-500.0,0.00016986,2]
[351988799,1738869063079,-500.0,0.00016986,2]
[351988800,1738869063090,-666.89,0.00016986,2]
[351988801,1738869063106,-500.0,0.00016986,2]
[351988802,1738869063116,-500.0,0.00016986,2]
[351988803,1738869063127,-500.0,0.00016986,2]
[351988804,1738869063138,-500.0,0.00016986,2]
[351988805,1738869063149,-500.0,0.00016986,2]
[351988806,1738869063159,-500.0,0.00016986,2]
[351988807,1738869063169,-500.0,0.00016986,2]
[351988808,1738869063179,-500.0,0.00016986,2]
[351988809,1738869063190,-500.0,0.00016986,2]
[351988810,1738869063200,-500.0,0.00016986,2]
[351988811,1738869063211,-500.0,0.00016986,2]
[351988812,1738869063222,-500.0,0.00016986,2]
[351988813,1738869063233,-500.0,0.00016986,2]
[351988814,1738869063244,-500.0,0.00016986,2]
[351988815,1738869063254,-658.41,0.00016986,2]
[351988816,1738869063265,-500.0,0.00016986,2]
[351988817,1738869063275,-500.0,0.00016986,2]
[351988818,1738869063286,-500.0,0.00016986,2]
[351988819,1738869063296,-500.0,0.00016986,2]
[351988820,1738869063306,-649.15,0.00016986,2]
[351988821,1738869063316,-419.06278396,0.00016986,2]
[351988822,1738869063327,-500.0,0.00016986,2]
[351988823,1738869063338,-500.0,0.00016986,2]
[351988824,1738869063352,-500.0,0.00016986,2]
[351988825,1738869063362,-682.77,0.00016986,2]
[351988826,1738869063373,-500.0,0.00016986,2]
[351988827,1738869063384,-500.0,0.00016986,2]
[351988828,1738869063395,-809.52,0.00016986,2]
[351988829,1738869063405,-749.62,0.00016986,2]
[351988830,1738869063416,-500.0,0.00016986,2]
[351988831,1738869063426,-500.0,0.00016986,2]
[351988832,1738869063437,-500.0,0.00016986,2]
[351988833,1738869063447,-500.0,0.00016986,2]
[351988834,1738869063459,-500.0,0.00016986,2]
[351988835,1738869063469,-500.0,0.00016986,2]
[351988836,1738869063479,-500.0,0.00016986,2]
[351988837,1738869063490,-500.0,0.00016986,2]
[351988838,1738869063503,-500.0,0.00016986,2]
[351988839,1738869063516,-500.0,0.00016986,2]
[351988840,1738869063527,-500.0,0.00016986,2]
[351988841,1738869063539,-671.3,0.00016986,2]
[351988842,1738869063550,-500.0,0.00016986,2]
[351988843,1738869063560,-500.0,0.00016986,2]
[351988844,1738869063571,-500.0,0.00016986,2]
[351988845,1738869063582,-500.0,0.00016986,2]
[351988846,1738869063597,-500.0,0.00016986,2]
[351988847,1738869063608,-500.0,0.00016986,2]
[351988848,1738869063618,-500.0,0.00016986,2]
[351988849,1738869063628,-727.24,0.00016986,2]
[351988850,1738869063638,-500.0,0.00016986,2]
[351988851,1738869063649,-595.86,0.00016986,2]
[351988852,1738869063659,-500.0,0.00016986,2]
[351988853,1738869063670,-343.90218743,0.00016986,2]
[351988854,1738869063680,-500.0,0.00016986,2]
[351988855,1738869063690,-736.27,0.00016986,2]
[351988856,1738869063701,-782.84,0.00016986,2]
[351988857,1738869063711,-546.92,0.00016986,2]
[351988858,1738869063721,-500.0,0.00016986,2]
[351988859,1738869063731,-500.0,0.00016986,2]
[351988860,1738869063741,-561.78,0.00016986,2]
[351988861,1738869063750,-1313.34,0.00016986,2]
[351988862,1738869063760,-677.32,0.00016986,2]
[351988863,1738869063770,-500.0,0.00016986,2]
[351988864,1738869063780,-500.0,0.00016986,2]
[351988865,1738869063790,-951.97,0.00016986,2]
[351988866,1738869063800,-1245.67,0.00016986,2]
[351988867,1738869063810,-500.0,0.00016986,2]
[351988868,1738869063820,-500.0,0.00016986,2]
[351988869,1738869063830,-729.72,0.00016986,2]
[351988870,1738869063840,-1576.36,0.00016986,2]
[351988871,1738869063853,-947.89,0.00016986,2]
[351988872,1738869063863,-1217.23,0.00016986,2]
[351988873,1738869063874,-500.0,0.00016986,2]
[351988874,1738869063884,-500.0,0.00016986,2]
[351988875,1738869063894,-1009.01,0.00016986,2]
[351988876,1738869063904,-500.0,0.00016986,2]
[351988877,1738869063914,-502.81,0.00016986,2]
[351988878,1738869063925,-1132.51,0.00016986,2]
[351988879,1738869063936,-592.17,0.00016986,2]
[351988880,1738869063945,-698.36,0.00016986,2]
[351988881,1738869063955,-714.09,0.00016986,2]
[351988882,1738869063966,-788.72,0.00016986,2]
[351988883,1738869063976,-500.0,0.00016986,2]
[351988884,1738869063986,-1183.22,0.00016986,2]
[351988885,1738869063996,-1152.38,0.00016986,2]
[351988886,1738869064006,-797.6,0.00016986,2]
[351988887,1738869064016,-588.41,0.00016986,2]
[351988888,1738869064026,-555.42,0.00016986,2]
[351988889,1738869064037,-2551.39,0.00016986,2]
[351988890,1738869064047,-500.0,0.00016986,2]
[351988891,1738869064058,-571.31,0.00016986,2]
[351988892,1738869064068,-759.91,0.00016986,2]
[351988893,1738869064078,-3041.0,0.00016986,2]
[351988894,1738869064088,-500.0,0.00016986,2]
[351988895,1738869064102,-500.0,0.00016986,2]
[351988896,1738869064112,-799.86,0.00016986,2]
[351988897,1738869064123,-609.0,0.00016986,2]
[351988898,1738869064135,-2070.64,0.00016986,2]
[351988899,1738869064146,-500.0,0.00016986,2]
[351988900,1738869064157,-500.0,0.00016986,2]
[351988901,1738869064168,-522.23,0.00016986,2]
[351988902,1738869064178,-928.38,0.00016986,2]
[351988903,1738869064188,-766.76,0.00016986,2]
[351988904,1738869064199,-500.0,0.00016986,2]
[351988905,1738869064210,-716.2,0.00016986,2]
[351988906,1738869064220,-883.93,0.00016986,2]
[351988907,1738869064230,-552.7,0.00016986,2]
[351988908,1738869064241,-1508.2,0.00016986,2]
[351988909,1738869064252,-516.18,0.00016986,2]
[351988910,1738869064263,-500.0,0.00016986,2]
[351988911,1738869064273,-1447.02,0.00016986,2]
[351988912,1738869064284,-500.0,0.00016986,2]
[351988913,1738869064294,-706.53,0.00016986,2]
[351988914,1738869064304,-500.0,0.00016986,2]
[351988915,1738869064314,-978.65,0.00016986,2]
[351988916,1738869064324,-1153.65,0.00016986,2]
[351988917,1738869064333,-500.0,0.00016986,2]
[351988918,1738869064346,-1914.73,0.00016986,2]
[351988919,1738869064357,-947.99,0.00016986,2]
[351988920,1738869064368,-579.21,0.00016986,2]
[351988921,1738869064378,-628.67,0.00016986,2]
[351988922,1738869064389,-500.0,0.00016986,2]
[351988923,1738869064399,-683.61,0.00016986,2]
[351988924,1738869064411,-1019.47,0.00016986,2]
[351988925,1738869064422,-1070.13,0.00016986,2]
[351988926,1738869064433,-500.0,0.00016986,2]
[351988927,1738869064444,-1472.07,0.00016986,2]
[351988928,1738869064454,-1119.85,0.00016986,2]
[351988929,1738869064465,-829.24,0.00016986,2]
[351988930,1738869064475,-1237.8,0.00016986,2]
[351988931,1738869064486,-500.0,0.00016986,2]
[351988932,1738869064499,-768.55,0.00016986,2]
[351988933,1738869064509,-500.0,0.00016986,2]
[351988934,1738869064520,-823.29,0.00016986,2]
[351988935,1738869064531,-3432.47,0.00016986,2]
[351988936,1738869064542,-500.0,0.00016986,2]
[351988937,1738869064552,-500.0,0.00016986,2]
[351988938,1738869064562,-1124.75,0.00016986,2]
[351988939,1738869064573,-1001.46,0.00016986,2]
[351988940,1738869064583,-500.0,0.00016986,2]
[351988941,1738869064592,-592.42,0.00016986,2]
[351988942,1738869064606,-1057.54,0.00016986,2]
[351988943,1738869064616,-500.0,0.00016986,2]
[351988944,1738869064627,-781.47,0.00016986,2]
[351988945,1738869064637,-500.0,0.00016986,2]
[351988946,1738869064647,-500.0,0.00016986,2]
[351988947,1738869064656,-1590.71,0.00016986,2]
[351988948,1738869064667,-571.38,0.00016986,2]
[351988949,1738869064677,-203.09,0.00016986,2]
[351988950,1738869064686,-547.46,0.00016986,2]
[351988951,1738869064696,-611.88,0.00016986,2]
[351988952,1738869064706,-500.0,0.00016986,2]
[351988953,1738869064716,-500.0,0.00016986,2]
[351988954,1738869064727,-500.0,0.00016986,2]
[351988955,1738869064737,-917.36,0.00016986,2]
[351988956,1738869064748,-2012.37,0.00016986,2]
[351988957,1738869064758,-581.15,0.00016986,2]
[351988958,1738869064769,-500.0,0.00016986,2]
[351988959,1738869064780,-1680.18,0.00016986,2]
[351988960,1738869064839,-1207.36,0.00016986,2]
[351988961,1738869064853,-581.67,0.00016986,2]
[351988962,1738869064864,-1132.12,0.00016986,2]
[351988963,1738869064874,-500.0,0.00016986,2]
[351988964,1738869064884,-399.55051084,0.00016986,2]
[351988965,1738869064894,-1498.04,0.00016986,2]
[351988966,1738869064903,-500.0,0.00016986,2]
[351988967,1738869064912,-500.0,0.00016986,2]
[351988968,1738869064923,-464.67182727,0.00016986,2]
[351988969,1738869064933,-1513.16,0.00016986,2]
[351988970,1738869064943,-925.3,0.00016986,2]
[351988971,1738869064953,-2321.43,0.00016986,2]
[351988972,1738869064962,-530.46,0.00016986,2]
[351988973,1738869064972,-751.5,0.00016986,2]
[351988974,1738869064982,-819.37,0.00016986,2]
[351988975,1738869064991,-1131.41,0.00016986,2]
[351988976,1738869065001,-516.32,0.00016986,2]
[351988977,1738869065011,-500.0,0.00016986,2]
[351988978,1738869065019,-500.0,0.00016986,2]
[351988979,1738869065029,-500.0,0.00016986,2]
[351988980,1738869065039,-887.03,0.00016986,2]
[351988981,1738869065048,-500.0,0.00016986,2]
[351988982,1738869065058,-1716.92,0.00016986,2]
[351988983,1738869065068,-750.35,0.00016986,2]
[351988984,1738869065078,-500.0,0.00016986,2]
[351988985,1738869065087,-500.0,0.00016986,2]
[351988986,1738869065100,-985.16,0.00016986,2]
[351988987,1738869065109,-1146.94,0.00016986,2]